fUSD/lending_fUSD_20260227
["ID","MTS","AMOUNT","RATE_DAILY","PERIOD"]
[406847672,1772227834758,-344.08056128,0.00010316,2]
[406847673,1772227834767,-1000.0,0.00010316,2]
[406847674,1772227834777,-500.0,0.00010411,2]
[406847675,1772227834787,-247.71,0.0001049,2]
[406847676,1772227834797,-1181.0,0.00010514,2]
[406847677,1772227834806,-2107.14785624,0.00010864,2]
[406847678,1772227834815,-500.0,0.00010959,2]
[406847679,1772227834825,-150.0,0.00010959,2]
[406847680,1772227834835,-166.66,0.00010959,2]
[406847681,1772227834844,-166.66,0.00011068,2]
[406847682,1772227834857,-15647.15755328,0.00011099,2]
[406847683,1772227834866,-4555.46362794,0.00011099,2]
[406847684,1772227834880,-11091.69392532,0.00011099,2]
[406847685,1772227834889,-15647.15755326,0.00011099,2]
[406847686,1772227834899,-15647.15755326,0.00011099,2]
[406847687,1772227834908,-321.93147998,0.00011099,2]
[406847688,1772227834918,-321.93147998,0.00011099,2]
[406847689,1772227834927,-321.93147998,0.00011099,2]
[406847690,1772227834937,-321.93147998,0.00011099,2]
[406847691,1772227834947,-166.66,0.00011178,2]
[406847692,1772227834956,-166.66,0.00011288,2]
[406847693,1772227834966,-166.66,0.00011397,2]
[406847694,1772227834975,-1528.91,0.00011507,2]
[406847695,1772227834985,-166.66,0.00011507,2]
[406847696,1772227834994,-1090.336318,0.00011534,2]
[406847697,1772227835003,-247.294947,0.00011557,2]
[406847698,1772227835013,-33000.0,0.0001166,2]
[406847699,1772227835023,-321.93147998,0.00011946,2]
[406847700,1772227835032,-15647.15755326,0.00011946,2]
[406847701,1772227835042,-2037.38455458,0.00012542,2]
[406847702,1772227835054,-500.0,0.0001289,2]
[406847703,1772227835064,-500.0,0.0001289,2]
[406847704,1772227835074,-500.0,0.0001289,2]
[406847705,1772227835084,-500.0,0.0001289,2]
[406847706,1772227835093,-500.0,0.0001289,2]
[406847707,1772227835103,-500.0,0.0001289,2]
[406847708,1772227835113,-500.0,0.0001289,2]
[406847709,1772227835123,-500.0,0.0001289,2]
[406847710,1772227835133,-500.0,0.0001289,2]
[406847711,1772227835142,-482.2506885,0.0001289,2]
[406847712,1772227835151,-158.39398795,0.0001289,2]
[406847713,1772227835161,-500.0,0.0001289,2]
[406847714,1772227835172,-321.93147998,0.00013137,2]
[406847715,1772227835186,-15647.15755326,0.00013137,2]
[406847716,1772227835195,-1500.0,0.0001332,2]
[406847717,1772227835206,-3240.0,0.00013425,2]
[406847718,1772227835216,-3876.94712043,0.00013598,2]
[406847719,1772227835227,-10000.0,0.00013599,2]
[406847720,1772227835238,-500.0,0.00013698,2]
[406847721,1772227835248,-500.0,0.00013698,2]
[406847722,1772227835258,-500.0,0.00013698,2]
[406847723,1772227835268,-500.0,0.00013698,2]
[406847724,1772227835278,-500.0,0.00013698,2]
[406847725,1772227835288,-500.0,0.00013698,2]
[406847726,1772227835298,-500.0,0.00013698,2]
[406847727,1772227835307,-586.08,0.00013698,2]
[406847728,1772227835317,-500.0,0.00013698,2]
[406847729,1772227835328,-500.0,0.00013698,2]
[406847730,1772227835338,-500.0,0.00013698,2]
[406847731,1772227835347,-500.0,0.00013698,2]
[406847732,1772227835357,-500.0,0.00013698,2]
[406847733,1772227835367,-500.0,0.00013698,2]
[406847734,1772227835377,-500.0,0.00013698,2]
[406847735,1772227835387,-500.0,0.00013698,2]
[406847736,1772227835397,-500.0,0.00013698,2]
[406847737,1772227835407,-500.0,0.00013698,2]
[406847738,1772227835418,-500.0,0.00013698,2]
[406847739,1772227835427,-500.0,0.00013698,2]
[406847740,1772227835445,-500.0,0.00013698,2]
[406847741,1772227835458,-500.0,0.00013698,2]
[406847742,1772227835468,-500.0,0.00013698,2]
[406847743,1772227835478,-500.0,0.00013698,2]
[406847744,1772227835489,-500.0,0.00013698,2]
[406847745,1772227835499,-500.0,0.00013698,2]
[406847746,1772227835509,-500.0,0.00013698,2]
[406847747,1772227835519,-500.0,0.00013698,2]
[406847748,1772227835529,-312.95743108,0.00013698,2]
[406847749,1772227835543,-187.04256892,0.00013698,2]
[406847750,1772227835552,-443.43819098,0.00013698,2]
[406847751,1772227835565,-56.56180902,0.00013698,2]
[406847752,1772227835575,-500.0,0.00013698,2]
[406847753,1772227835585,-500.0,0.00013698,2]
[406847754,1772227835595,-500.0,0.00013698,2]
[406847755,1772227835605,-500.0,0.00013698,2]
[406847756,1772227835615,-210.48,0.00013698,2]
[406847757,1772227835625,-500.0,0.00013698,2]
[406847758,1772227835635,-500.0,0.00013698,2]
[406847759,1772227835645,-500.0,0.00013698,2]
[406847760,1772227835655,-500.0,0.00013698,2]
[406847761,1772227835665,-357.08179502,0.00013698,2]
[406847762,1772227835674,-500.0,0.00013698,2]
[406847763,1772227835684,-500.0,0.00013698,2]
[406847764,1772227835693,-500.0,0.00013698,2]
[406847765,1772227835703,-500.0,0.00013698,2]
[406847766,1772227835712,-500.0,0.00013698,2]
[406847767,1772227835723,-500.0,0.00013698,2]
[406847768,1772227835732,-500.0,0.00013698,2]
[406847769,1772227835743,-500.0,0.00013698,2]
[406847770,1772227835752,-500.0,0.00013698,2]
[406847771,1772227835763,-500.0,0.00013698,2]
[406847772,1772227835773,-500.0,0.00013698,2]
[406847773,1772227835783,-500.0,0.00013698,2]
[406847774,1772227835793,-500.0,0.00013698,2]
[406847775,1772227835804,-500.0,0.00013698,2]
[406847776,1772227835813,-500.0,0.00013698,2]
[406847777,1772227835826,-500.0,0.00013698,2]
[406847778,1772227835836,-500.0,0.00013698,2]
[406847779,1772227835845,-500.0,0.00013698,2]
[406847780,1772227835855,-500.0,0.00013698,2]
[406847781,1772227835865,-500.0,0.00013698,2]
[406847782,1772227835875,-500.0,0.00013698,2]
[406847783,1772227835885,-500.0,0.00013698,2]
[406847784,1772227835895,-500.0,0.00013698,2]
[406847785,1772227835905,-500.0,0.00013698,2]
[406847786,1772227835915,-278.70046284,0.00013698,2]
[406847787,1772227835925,-500.0,0.00013698,2]
[406847788,1772227835934,-500.0,0.00013698,2]
[406847789,1772227835944,-500.0,0.00013698,2]
[406847790,1772227835954,-500.0,0.00013698,2]
[406847791,1772227835963,-500.0,0.00013698,2]
[406847792,1772227835973,-500.0,0.00013698,2]
[406847793,1772227835983,-500.0,0.00013698,2]
[406847794,1772227835993,-500.0,0.00013698,2]
[406847795,1772227836002,-500.0,0.00013698,2]
[406847796,1772227836011,-500.0,0.00013698,2]
[406847797,1772227836021,-500.0,0.00013698,2]
[406847798,1772227836031,-500.0,0.00013698,2]
[406847799,1772227836041,-500.0,0.00013698,2]
[406847800,1772227836050,-500.0,0.00013698,2]
[406847801,1772227836060,-500.0,0.00013698,2]
[406847802,1772227836070,-500.0,0.00013698,2]
[406847803,1772227836079,-500.0,0.00013698,2]
[406847804,1772227836088,-500.0,0.00013698,2]
[406847805,1772227836098,-500.0,0.00013698,2]
[406847806,1772227836108,-500.0,0.00013698,2]
[406847807,1772227836118,-500.0,0.00013698,2]
[406847808,1772227836128,-500.0,0.00013698,2]
[406847809,1772227836137,-500.0,0.00013698,2]
[406847810,1772227836147,-500.0,0.00013698,2]
[406847811,1772227836157,-563.9784206,0.00013698,2]
[406847812,1772227836166,-500.0,0.00013698,2]
[406847813,1772227836178,-308.68378682,0.00013698,2]
[406847814,1772227836191,-191.31621318,0.00013698,2]
[406847815,1772227836201,-500.0,0.00013698,2]
[406847816,1772227836214,-500.0,0.00013698,2]
[406847817,1772227836224,-500.0,0.00013698,2]
[406847818,1772227836234,-500.0,0.00013698,2]
[406847819,1772227836243,-500.0,0.00013698,2]
[406847820,1772227836253,-500.0,0.00013698,2]
[406847821,1772227836262,-500.0,0.00013698,2]
[406847822,1772227836271,-190.466998,0.00013698,2]
[406847823,1772227836282,-309.533002,0.00013698,2]
[406847824,1772227836292,-457.86,0.00013699,2]
[406847825,1772227836301,-501.50601316,0.00013699,2]
[406847826,1772227836310,-500.0,0.00013699,2]
[406847827,1772227836319,-500.0,0.00013699,2]
[406847828,1772227836329,-344.84278362,0.00013699,2]
[406847829,1772227836338,-500.0,0.00013699,2]
[406847830,1772227836347,-500.0,0.00013699,2]
[406847831,1772227836356,-500.0,0.00013699,2]
[406847832,1772227836365,-500.0,0.00013699,2]
[406847833,1772227836375,-500.0,0.00013699,2]
[406847834,1772227836384,-502.48858977,0.00013699,2]
[406847835,1772227836394,-500.0,0.00013699,2]
[406847836,1772227836403,-500.0,0.00013699,2]
[406847837,1772227836413,-500.0,0.00013699,2]
[406847838,1772227836422,-500.0,0.00013699,2]
[406847839,1772227836431,-500.0,0.00013699,2]
[406847840,1772227836441,-500.0,0.00013699,2]
[406847841,1772227836450,-500.0,0.00013699,2]
[406847842,1772227836461,-500.0,0.00013699,2]
[406847843,1772227836470,-500.0,0.00013699,2]
[406847844,1772227836479,-500.0,0.00013699,2]
[406847845,1772227836489,-500.0,0.00013699,2]
[406847846,1772227836499,-500.0,0.00013699,2]
[406847847,1772227836508,-555.40539763,0.00013699,2]
[406847848,1772227836517,-500.0,0.00013699,2]
[406847849,1772227836527,-195.29651625,0.00013699,2]
[406847850,1772227836539,-308.9058599,0.00013699,2]
[406847851,1772227836548,-500.0,0.00013699,2]
[406847852,1772227836558,-564.44693438,0.00013699,2]
[406847853,1772227836567,-326.8850417,0.00013699,2]
[406847858,1772227837745,-173.1149583,0.00013699,2]
[406847859,1772227837755,-507.14846603,0.00013699,2]
[406847860,1772227837764,-500.0,0.00013699,2]
[406847861,1772227837774,-500.0,0.00013699,2]
[406847862,1772227837783,-500.0,0.00013699,2]
[406847863,1772227837793,-500.0,0.00013699,2]
[406847864,1772227837802,-500.0,0.00013699,2]
[406847865,1772227837811,-500.0,0.00013699,2]
[406847866,1772227837821,-500.0,0.00013699,2]
[406847867,1772227837832,-500.0,0.00013699,2]
[406847868,1772227837842,-500.0,0.00013699,2]
[406847881,1772227837852,-500.0,0.00013699,2]
[406847882,1772227838048,-310.9054072,0.00013699,2]
[406847883,1772227838057,-500.0,0.00013699,2]
[406847884,1772227838067,-2800.0,0.000139,5]
[406847885,1772227838076,-184.7,0.00014185,2]
[406847886,1772227838086,-1000.0,0.00014247,2]
[406847887,1772227838095,-288.09474142,0.00014247,2]
[406847888,1772227838104,-1000.0,0.00014247,2]
[406847889,1772227838113,-1000.0,0.00014247,2]
[406847890,1772227838123,-841.04939345,0.00014247,2]
[406847891,1772227838132,-1000.0,0.00014247,2]
[406847892,1772227838142,-1000.0,0.00014247,2]
[406847893,1772227838151,-526.85264,0.00014247,2]
[406847894,1772227838160,-1000.0,0.00014247,2]
[406847895,1772227838169,-1000.0,0.00014247,2]
[406847896,1772227838180,-1009.93232969,0.00014247,2]
[406847897,1772227838190,-502.28503114,0.00014247,2]
[406847898,1772227838199,-1000.0,0.00014247,2]
[406847899,1772227838209,-1000.0,0.00014247,2]
[406847900,1772227838218,-1000.0,0.00014247,2]
[406847901,1772227838227,-1000.0,0.00014247,2]
[406847902,1772227838236,-1012.76163768,0.00014247,2]
[406847903,1772227838246,-1000.0,0.00014247,2]
[406847904,1772227838255,-1000.0,0.00014247,2]
[406847905,1772227838264,-1000.0,0.00014247,2]
[406847906,1772227838273,-1000.0,0.00014247,2]
[406847907,1772227838282,-1000.0,0.00014247,2]
[406847908,1772227838291,-1000.0,0.00014247,2]
[406847909,1772227838301,-1000.0,0.00014247,2]
[406847910,1772227838310,-1000.0,0.00014247,2]
[406847911,1772227838319,-1000.0,0.00014247,2]
[406847912,1772227838329,-1000.0,0.00014247,2]
[406847913,1772227838338,-1000.0,0.00014247,2]
[406847914,1772227838347,-1000.0,0.00014247,2]
[406847915,1772227838357,-1000.0,0.00014247,2]
[406847916,1772227838366,-1006.69135807,0.00014247,2]
[406847917,1772227838375,-321.93147998,0.00014328,2]
[406847918,1772227838384,-15647.15755326,0.00014328,2]
[406847919,1772227838394,-457.86,0.00014384,2]
[406847920,1772227838403,-151.0,0.00014634,2]
[406847921,1772227838412,-50000.0,0.0001464,2]
[406847922,1772227838421,-1644.44196517,0.00014795,2]
[406847923,1772227838431,-1500.0,0.00014795,2]
[406847924,1772227838441,-929.49570382,0.00014795,2]
[406847925,1772227838450,-1647.84261484,0.00014795,2]
[406847926,1772227838460,-1500.0,0.00014795,2]
[406847927,1772227838469,-1500.0,0.00014795,2]
[406847928,1772227838479,-1500.0,0.00014795,2]
[406847929,1772227838488,-508.10480934,0.00014795,2]
[406847930,1772227838497,-1500.0,0.00014795,2]
[406847931,1772227838506,-1500.0,0.00014795,2]
[406847932,1772227838516,-1500.0,0.00014795,2]
[406847933,1772227838525,-1500.0,0.00014795,2]
[406847934,1772227838535,-1241.17434169,0.00014795,2]
[406847935,1772227838545,-1500.0,0.00014795,2]
[406847936,1772227838555,-1500.0,0.00014795,2]
[406847937,1772227838564,-1500.0,0.00014795,2]
[406847938,1772227838574,-1500.0,0.00014795,2]
[406847939,1772227838583,-1500.0,0.00014795,2]
[406847940,1772227838593,-1500.0,0.00014795,2]
[406847941,1772227838602,-1500.0,0.00014795,2]
[406847942,1772227838611,-1500.0,0.00014795,2]
[406847943,1772227838621,-1500.0,0.00014795,2]
[406847944,1772227838630,-1500.0,0.00014795,2]
[406847945,1772227838639,-1500.0,0.00014795,2]
[406847946,1772227838649,-511.0,0.0001489,2]
[406847947,1772227838658,-508.18410595,0.000149,2]
[406847948,1772227838668,-166.66,0.00014951,2]
[406847949,1772227838677,-250.0,0.00015,2]
[406847950,1772227838686,-693.13,0.00015068,2]
[406847951,1772227838696,-266.65,0.00015068,2]
[406847952,1772227838705,-457.86,0.00015068,2]
[406847953,1772227838715,-781.53,0.00015342,2]
[406847954,1772227838724,-715.41849404,0.00015342,2]
[406847955,1772227838734,-511.45189164,0.00015342,2]
[406847956,1772227838744,-440.59098373,0.00015342,2]
[406847957,1772227838753,-703.52805437,0.00015342,2]
[406847958,1772227838762,-2000.0,0.00015342,2]
[406847959,1772227838771,-2000.0,0.00015342,2]
[406847960,1772227838781,-2000.0,0.00015342,2]
[406847961,1772227838790,-597.09510233,0.00015342,2]
[406847962,1772227838800,-2000.0,0.00015342,2]
[406847963,1772227838809,-2000.0,0.00015342,2]
[406847964,1772227838819,-1201.13446519,0.00015342,2]
[406847965,1772227838828,-1614.542994,0.00015342,2]
[406847966,1772227838837,-2000.0,0.00015342,2]
[406847967,1772227838846,-2000.0,0.00015342,2]
[406847968,1772227838856,-1505.60534384,0.00015342,2]
[406847969,1772227838865,-538.67533251,0.00015342,2]
[406847970,1772227838875,-1000.0,0.00015342,2]
[406847971,1772227838884,-1516.10263761,0.00015342,2]
[406847972,1772227838893,-2000.0,0.00015342,2]
[406847973,1772227838903,-2544.118077,0.00015379,7]
[406847974,1772227838912,-174.00015664,0.00015398,2]
[406847975,1772227838921,-160.0,0.00015398,2]
[406847976,1772227838931,-577.021544,0.00015409,7]
[406847977,1772227838941,-166.66,0.00015445,2]
[406847978,1772227838950,-321.93147998,0.00015518,2]
[406847979,1772227838960,-15647.15755326,0.00015518,2]
[406847980,1772227838970,-1000.0,0.00015671,7]
[406847981,1772227838979,-457.86,0.00015753,2]
[406847982,1772227838989,-201.7428914,0.0001579,2]
[406847983,1772227838998,-2528.27485084,0.0001589,2]
[406847984,1772227839007,-2500.0,0.0001589,2]
[406847985,1772227839017,-1208.62062,0.0001589,2]
[406847986,1772227839026,-1505.53161927,0.0001589,2]
[406847987,1772227839036,-2500.0,0.0001589,2]
[406847988,1772227839045,-2275.06944665,0.0001589,2]
[406847989,1772227839055,-1023.31974037,0.0001589,2]
[406847990,1772227839064,-2500.0,0.0001589,2]
[406847991,1772227839073,-166.66,0.00015939,2]
[406847992,1772227839083,-5000.0,0.0001596,2]
[406847993,1772227839092,-9999.99,0.00016116,2]
[406847994,1772227839101,-166.66,0.00016432,2]
[406847995,1772227839110,-457.86,0.00016438,2]
[406847996,1772227839120,-266.68789925,0.00016438,2]
[406847997,1772227839129,-1984.08045004,0.00016438,2]
[406847998,1772227839139,-3000.0,0.00016438,2]
[406847999,1772227839149,-2291.80881226,0.00016438,2]
[406848000,1772227839158,-37604.0,0.000166,2]
[406848001,1772227839168,-321.93147998,0.00016709,2]
[406848002,1772227839180,-15647.15755326,0.00016709,2]
[406848003,1772227839189,-166.66,0.00016926,2]
[406848004,1772227839199,-3500.0,0.00016986,2]
[406848005,1772227839208,-300.0,0.00017,2]
[406848006,1772227839218,-166.66,0.00017419,2]
[406848007,1772227839228,-4000.0,0.00017534,2]
[406848008,1772227839238,-2000.0,0.0001759,2]
[406848009,1772227839247,-1006.12148852,0.0001764,2]
[406848010,1772227839259,-1016.54619677,0.0001764,2]
[406848011,1772227839269,-1115.62376759,0.0001764,2]
[406848012,1772227839278,-1009.84189388,0.0001764,2]
[406848013,1772227839287,-1002.59291024,0.0001764,2]
[406848014,1772227839297,-1109.94770555,0.0001764,2]
[406848015,1772227839306,-1148.44969412,0.0001764,2]
[406848016,1772227839315,-1029.72971277,0.0001764,2]
[406848017,1772227839324,-1015.18134085,0.0001764,2]
[406848018,1772227839334,-1144.50395006,0.0001764,2]
[406848019,1772227839343,-1011.79383853,0.0001764,2]
[406848020,1772227839352,-1131.13783112,0.0001764,2]
[406848021,1772227839362,-1117.44107053,0.0001764,2]
[406848022,1772227839371,-1067.10428721,0.0001764,2]
[406848023,1772227839381,-1115.62680928,0.0001764,2]
[406848024,1772227839390,-1020.42375157,0.0001764,2]
[406848025,1772227839399,-1145.47050141,0.0001764,2]
[406848026,1772227839408,-1077.59482485,0.0001764,2]
[406848027,1772227839418,-1116.68747496,0.0001764,2]
[406848028,1772227839427,-1083.91832034,0.0001764,2]
[406848029,1772227839436,-1056.46344477,0.0001764,2]
[406848030,1772227839446,-1147.63815,0.0001764,2]
[406848031,1772227839455,-1097.30640143,0.0001764,2]
[406848032,1772227839465,-1052.69985791,0.0001764,2]
[406848033,1772227839475,-1004.92772022,0.0001764,2]
[406848034,1772227839484,-1104.71130332,0.0001764,2]
[406848035,1772227839493,-1127.59228542,0.0001764,2]
[406848036,1772227839502,-1133.49591364,0.0001764,2]
[406848037,1772227839512,-1124.07685896,0.0001764,2]
[406848038,1772227839522,-1718.31445242,0.0001764,2]
[406848039,1772227839531,-168.0,0.00017684,2]
[406848040,1772227839540,-2000.0,0.0001769,2]
[406848041,1772227839550,-3500.0,0.000177,6]
[406848042,1772227839559,-2000.0,0.0001779,2]
[406848043,1772227839569,-700.0,0.000178,6]
[406848044,1772227839579,-5000.0,0.00017808,2]
[406848045,1772227839588,-321.93147998,0.000179,2]
[406848046,1772227839597,-700.0,0.000179,6]
[406848047,1772227839607,-2037.38455458,0.000179,2]
[406848048,1772227839616,-15647.15755326,0.000179,2]
[406848049,1772227839625,-150.0,0.00017973,2]
[406848050,1772227839635,-150.0,0.00017973,2]
[406848051,1772227839644,-1699.12989508,0.0001799,2]
[406848052,1772227839654,-1699.12989508,0.0001799,2]
[406848053,1772227839664,-960.255751,0.00017996,2]
[406848054,1772227839673,-21326.3041901,0.00017996,2]
[406848055,1772227839682,-1162.2938137,0.00017996,2]
[406848056,1772227839691,-647.78,0.00017999,2]
[406848057,1772227839701,-500.0,0.00017999,2]
[406848058,1772227839710,-500.0,0.00017999,2]
[406848059,1772227839720,-500.0,0.00017999,2]
[406848060,1772227839729,-500.0,0.00017999,2]
[406848061,1772227839739,-500.0,0.00017999,2]
[406848062,1772227839748,-500.0,0.00017999,2]
[406848063,1772227839758,-500.0,0.00017999,2]
[406848064,1772227839767,-500.0,0.00017999,2]
[406848065,1772227839777,-500.0,0.00017999,2]
[406848066,1772227839786,-511.11,0.00017999,2]
[406848067,1772227839796,-500.0,0.00017999,2]
[406848068,1772227839808,-300.0,0.00017999,2]
[406848069,1772227839819,-194.04859862,0.00017999,2]
[406848070,1772227839830,-6032861.08800607,0.00018,2]
[406848071,1772227839847,-753.25136983,0.00018,2]
[406848072,1772227839918,-21.77674768,0.00018,2]
[406848073,1772227840000,-820.01586074,0.00018,2]
[406848074,1772227840012,-903034.04045896,0.00018,2]
[406848075,1772227840024,-1195.98056586,0.00018,2]
[406848076,1772227840035,-283.90698305,0.00018028,2]
[406848077,1772227840045,-168.0,0.00018099,2]
[406848078,1772227840056,-1449.19489551,0.00018487,2]
[406848079,1772227840066,-168.0,0.0001854,2]
[406848080,1772227840076,-168.0,0.00018674,2]
[406848081,1772227840086,-168.0,0.00018721,2]
[406848082,1772227840097,-167.98726068,0.00019,2]
[406848083,1772227840108,-32628.70756685,0.00019,2]
[406848084,1772227840119,-1449.19489551,0.00020086,2]
[406848085,1772227840129,-5000.0,0.00021918,2]
[406848086,1772227840140,-150.37,0.00021918,30]
[406848087,1772227840151,-4758.5416693,0.00022098,2]
[406848088,1772227840162,-1315.63,0.00022296,2]
[406848089,1772227840173,-1528.91,0.0002274,2]
[406848090,1772227840187,-1061.7741647,0.00023013,2]
[406848091,1772227840198,-1315.63,0.00023257,2]
[406848092,1772227840208,-247.71,0.00023562,2]
[406848093,1772227840219,-362.99025417,0.00023703,11]
[406848094,1772227840229,-1315.63,0.00024217,2]
[406848095,1772227840239,-595.56673749,0.00024304,12]
[406848096,1772227840251,-1000.0,0.00024658,2]
[406848097,1772227840262,-10316.0,0.00024683,2]
[406848098,1772227840274,-1315.63,0.00025177,2]
[406848099,1772227840286,-642.46849922,0.00025506,14]
[406848100,1772227840298,-1852.42,0.00026092,2]
[406848101,1772227840309,-689.37026106,0.00026107,15]
[406848102,1772227840320,-1315.63,0.00026137,2]
[406848103,1772227840332,-1007.264,0.00026959,2]
[406848104,1772227840343,-324.137,0.00026959,2]
[406848105,1772227840354,-1315.63,0.00027097,2]
[406848106,1772227840365,-1315.63,0.00028057,2]
[406848107,1772227840375,-1000.0,0.0002839,2]
[406848108,1772227840386,-1315.63,0.00029017,2]
[406848109,1772227840397,-1315.63,0.00029977,2]
[406848110,1772227840408,-1315.63,0.00030938,2]
[406848111,1772227840419,-2000.0,0.00031,2]
[406848112,1772227840431,-3876.94712041,0.00031499,2]
[406848113,1772227840442,-1315.63,0.00031898,2]
[406848114,1772227840452,-1315.63,0.00032858,2]
[406848115,1772227840465,-169.83,0.000329,14]
[406848116,1772227840476,-153.52,0.000329,14]
[406848117,1772227840487,-161.72,0.000329,14]
[406848118,1772227840499,-254.19,0.000329,2]
[406848119,1772227840509,-428.454,0.00033193,35]
[406848120,1772227840522,-247.71,0.00033425,2]
[406848121,1772227840533,-500.0,0.00033569,2]
[406848122,1772227840543,-500.0,0.00033569,2]
[406848123,1772227840554,-500.0,0.00033569,2]
[406848124,1772227840566,-500.0,0.00033569,2]
[406848125,1772227840576,-500.0,0.00033569,2]
[406848126,1772227840587,-500.0,0.00033569,2]
[406848127,1772227840597,-500.0,0.00033569,2]
[406848128,1772227840608,-500.0,0.00033569,2]
[406848129,1772227840619,-500.0,0.00033569,2]
[406848130,1772227840629,-500.0,0.00033569,2]
[406848131,1772227840639,-500.0,0.00033569,2]
[406848132,1772227840656,-500.0,0.00033569,2]
[406848133,1772227840667,-500.0,0.00033569,2]
[406848134,1772227840678,-644.79446246,0.00033569,2]
[406848135,1772227840690,-151.0,0.00033569,2]
[406848136,1772227840700,-500.0,0.00033569,2]
[406848137,1772227840712,-500.0,0.00033569,2]
[406848138,1772227840723,-500.0,0.00033569,2]
[406848139,1772227840735,-250.0,0.00033569,2]
[406848140,1772227840746,-668.65185757,0.00033624,2]
[406848141,1772227840756,-693.3919763,0.00033679,2]
[406848142,1772227840768,-719.04747942,0.00033734,2]
[406848143,1772227840778,-745.65223616,0.00033789,2]
[406848144,1772227840789,-1315.63,0.00033818,2]
[406848145,1772227840799,-773.2413689,0.00033844,2]
[406848146,1772227840810,-801.85129955,0.00033899,2]
[406848147,1772227840821,-831.51979763,0.00033954,2]
[406848148,1772227840832,-1528.91,0.00033973,2]
[406848149,1772227840843,-862.28603014,0.00034009,2]
[406848150,1772227840852,-894.19061326,0.00034064,2]
[406848151,1772227840862,-927.27566595,0.00034119,2]
[406848152,1772227840872,-961.58486559,0.00034174,2]
[406848153,1772227840883,-997.16350561,0.00034229,2]
[406848154,1772227840894,-500.0,0.00034551,2]
[406848155,1772227840904,-2000.0,0.000347,2]
[406848156,1772227840914,-1315.63,0.00034778,2]
[406848157,1772227840926,-522.0,0.0003492,30]
[406848158,1772227840938,-836.0,0.0003492,30]
[406848159,1772227840950,-1315.63,0.00035738,2]
[406848160,1772227840962,-500.0,0.00036509,2]
[406848161,1772227840972,-500.0,0.00036557,45]
[406848162,1772227840982,-119566.0,0.00036558,30]
[406848163,1772227840991,-1315.63,0.00036698,2]
[406848164,1772227841001,-19307.45,0.00037322,120]
[406848165,1772227841011,-1315.63,0.00037659,2]
[406848166,1772227841020,-119566.0,0.00037763,30]
[406848167,1772227841029,-2000.0,0.000384,2]
[406848168,1772227841039,-1315.63,0.00038619,2]
[406848169,1772227841049,-119566.0,0.00038968,30]
[406848170,1772227841059,-254.19,0.00039,30]
[406848171,1772227841070,-1315.63,0.00039579,2]
[406848172,1772227841080,-158.0,0.0004,120]
[406848173,1772227841091,-30552.21382147,0.0004,2]
[406848174,1772227841102,-119566.0,0.00040173,30]
[406848175,1772227841113,-1315.63,0.00040539,2]
[406848176,1772227841123,-153.52,0.000406,14]
[406848177,1772227841135,-161.72,0.000406,14]
[406848178,1772227841145,-3237.05,0.000407,6]
[406848179,1772227841155,-177.0,0.00041,90]
[406848180,1772227841165,-844.0,0.00041096,120]
[406848181,1772227841175,-119566.0,0.00041378,30]
[406848182,1772227841187,-844.0,0.00041644,120]
[406848183,1772227841197,-300.0,0.00041728,2]
[406848184,1772227841206,-300.0,0.00041728,2]
[406848185,1772227841217,-300.0,0.00041728,2]
[406848186,1772227841227,-300.0,0.00041765,2]
[406848187,1772227841237,-2000.0,0.000421,2]